bitfinex-derivatives/quotes_SOLF0:USTF0_20250821
["timestamp","ask_amount","ask_price","bid_price","bid_amount"]
[1755789164956,2.85,183.24,183.1,2.88]
[1755789165354,2.85,183.19,183.03,2.88]
[1755789165561,2.85,183.19,183.03,0.95036526]
[1755789165761,2.85,183.19,183.12,5.4614]
[1755789165957,2.85,183.19,183.03,0.95036526]
[1755789166161,2.85,183.19,183.04,2.88]
[1755789166358,7.74904234,183.19,183.04,4.89904234]
[1755789166554,7.74904234,183.19,183.05,2.88]
[1755789167458,7.74904234,183.19,183.08,2.88]
[1755789168162,2.85,183.19,183.08,2.88]
[1755789168365,10.91585003,183.19,183.08,2.88]
[1755789169259,2.85,183.14,183.03,3.83036526]
[1755789169465,2.85,183.14,183.06,5.4631]
[1755789169756,8.06585003,183.13,183.03,2.88]
[1755789169954,8.06585003,183.13,183.0,2.88]
[1755789170453,8.06585003,183.17,183.0,3.83071577]
[1755789170662,8.06585003,183.17,183.01,2.88]
[1755789171064,2.85,183.18,183.01,2.88]
[1755789171264,10.91585003,183.18,183.01,2.88]
[1755789171566,10.91585003,183.18,183.03,2.88]
[1755789171762,10.91585003,183.18,183.08,2.88]
[1755789171962,8.06585003,183.3,183.08,2.88]
[1755789172162,8.06585003,183.22,183.08,2.88]
[1755789172470,2.85,183.17,183.02,145.02]
[1755789172762,2.85,183.17,183.05,2.97]
[1755789172960,8.06585003,183.18,183.05,2.97]
[1755789173165,11.13585003,183.22,183.05,2.97]
[1755789173470,3.07,183.21,183.05,2.97]
[1755789173761,8.06585003,183.18,183.05,2.97]
[1755789175270,11.13585003,183.18,183.05,2.97]
[1755789175965,8.06585003,183.18,183.05,2.97]
[1755789176161,8.06585003,183.3,183.0,3.92071577]
[1755789176162,3.07,183.13,183.0,3.92071577]
[1755789176567,8.06585003,183.1,183.0,2.97]
[1755789176766,3.07,183.09,182.95,2.97]
[1755789176964,3.07,183.09,183.0,5.4647]
[1755789177271,3.07,183.09,182.95,2.97]
[1755789177468,3.07,183.09,182.97,5.4658]
[1755789177672,11.13585003,183.06,182.95,2.97]
[1755789178268,3.07,183.06,182.95,2.97]
[1755789179671,3.07,183.06,182.99,5.465]
[1755789180062,3.07,183.06,182.95,2.97]
[1755789180265,3.07,183.11,182.95,2.97]
[1755789180468,11.13585003,183.11,182.95,2.97]
[1755789181263,11.13585003,183.11,182.95,148.11]
[1755789181668,11.13585003,183.11,183.01,5.4646]
[1755789181871,3.07,183.11,182.96,2.97]
[1755789182070,11.13585003,183.11,182.96,2.97]
[1755789183285,8.06585003,183.14,182.97,2.97]
[1755789183478,3.07,183.15,183.01,2.97]
[1755789183777,3.07,183.15,183.05,2.97]
[1755789183977,3.07,183.15,183.0,11.03585003]
[1755789184179,3.07,183.15,183.0,2.97]
[1755789184376,8.06585003,183.12,183.0,2.97]
[1755789184575,11.13585003,183.12,183.0,2.97]
[1755789184773,3.07,183.12,183.03,2.97]
[1755789185071,8.06585003,183.16,183.03,2.97]
[1755789185378,3.07,183.17,183.03,2.97]
[1755789185779,3.07,183.22,183.05,2.97]
[1755789186182,8.06585003,183.28,183.09,2.97]
[1755789186376,3.07,183.23,183.09,2.97]
[1755789186784,3.07,183.19,183.09,2.97]
[1755789186986,8.06585003,183.24,183.09,2.97]
[1755789187179,11.13585003,183.24,183.09,2.97]
[1755789187385,11.13585003,183.24,183.15,5.4602]
[1755789187578,3.07,183.23,183.09,2.97]
[1755789187776,3.07,183.19,183.09,2.97]
[1755789188177,3.07,183.19,183.04,145.36]
[1755789188178,8.06585003,183.16,183.04,2.97]
[1755789188586,3.07,183.19,183.04,2.97]
[1755789188786,8.06585003,183.15,183.04,2.97]
[1755789188988,8.06585003,183.15,183.1,5.4618]
[1755789189285,11.13585003,183.18,183.04,2.97]
[1755789189486,8.06585003,183.18,183.04,2.97]
[1755789189686,8.06585003,183.14,183.04,2.97]
[1755789189887,3.07,183.13,183.04,2.97]
[1755789190089,3.07,183.12,183.04,2.97]
[1755789190292,7.97249545,183.12,183.04,2.97]
[1755789190592,4.90249545,183.09,183.03,367.04]
[1755789190985,4.90249545,183.09,183.02,5.4643]
[1755789191187,3.07,183.12,182.99,2.97]
[1755789191392,4.90249545,183.11,182.99,2.97]
[1755789191785,3.07,183.12,182.99,2.97]
[1755789192292,3.07,183.12,183.03,2.97]
[1755789192491,4.90249545,183.14,183.03,2.97]
[1755789192692,4.90249545,183.11,182.97,145.52]
[1755789192894,4.90249545,183.11,182.98,2.97]
[1755789193092,7.97249545,183.13,182.98,2.97]
[1755789193287,3.07,183.13,183.03,2.97]
[1755789194794,7.97249545,183.18,183.03,4.90249545]
[1755789195096,7.97249545,183.18,183.04,2.97]
[1755789195389,4.90249545,183.21,183.09,2.97]
[1755789195588,4.90249545,183.21,183.09,148.75]
[1755789195795,7.97249545,183.23,183.09,148.75]
[1755789196097,3.07,183.23,183.1,2.97]
[1755789196290,7.97249545,183.26,183.21,5.4587]
[1755789196492,3.07,183.26,183.15,4.90249545]
[1755789196696,3.07,183.31,183.16,2.97]
[1755789196892,3.07,183.31,183.2,2.97]
[1755789197294,4.90249545,183.32,183.26,5.457]
[1755789197592,3.07,183.3,183.2,2.97]
[1755789198291,3.07,183.3,183.11,27.253]
[1755789198292,7.97249545,183.3,183.14,2.97]
[1755789198495,4.90249545,183.29,183.16,145.6]
[1755789198890,3.07,183.3,183.16,145.6]
[1755789199089,4.90249545,183.27,183.14,2.97]
[1755789199395,3.07,183.26,183.14,2.97]
[1755789199586,4.90249545,183.24,183.14,2.97]
[1755789199791,4.90249545,183.21,183.1,2.97]
[1755789202399,11.13212959,183.23,183.1,2.97]
[1755789204799,3.07,183.23,183.1,2.97]
[1755789205197,8.06212959,183.29,183.1,2.97]
[1755789205401,2.94,183.28,183.21,5.4585]
[1755789205597,2.94,183.28,183.17,2.9]
[1755789206000,2.94,183.28,183.13,8.06212959]
[1755789206400,2.94,183.28,183.2,5.4588]
[1755789206598,2.94,183.28,183.12,2.9]
[1755789206802,2.94,183.28,183.18,5.4594]
[1755789207101,2.94,183.28,183.12,2.9]
[1755789207306,2.94,183.28,183.13,8.06212959]
[1755789207496,2.94,183.28,183.14,2.9]
[1755789207997,8.06212959,183.32,183.14,2.9]
[1755789207998,2.94,183.27,183.14,2.9]
[1755789208306,2.94,183.27,183.25,5.4574]
[1755789208516,2.94,183.31,183.14,13.8211]
[1755789208702,8.06212959,183.3,183.14,160.3411]
[1755789208897,2.94,183.29,183.14,149.42]
[1755789209503,2.94,183.29,183.15,2.9]
[1755789209908,2.94,183.33,183.23,2.9]
[1755789210207,8.06212959,183.36,183.23,2.9]
[1755789210407,2.94,183.35,183.28,5.4566]
[1755789210601,2.94,183.35,183.23,2.9]
[1755789211108,2.94,183.35,183.18,2.9]
[1755789211504,2.94,183.35,183.26,5.457]
[1755789211709,2.94,183.35,183.18,2.9]
[1755789212313,2.94,183.35,183.18,13.819]
[1755789212509,2.94,183.35,183.2,8.06212959]
[1755789212712,2.94,183.34,183.3,5.4559]
[1755789212903,2.94,183.33,183.24,2.9]
[1755789213308,8.06212959,183.36,183.24,2.9]
[1755789213707,2.94,183.35,183.24,2.9]
[1755789214014,2.94,183.35,183.19,2.9]
[1755789215314,2.94,183.35,183.25,5.4573]
[1755789215611,2.94,183.35,183.19,2.9]
[1755789216311,2.94,183.35,183.21,2.9]
[1755789217211,2.94,183.4,183.25,2.9]
[1755789217715,2.94,183.39,183.25,2.9]
[1755789218116,2.94,183.39,183.32,5.4552]
[1755789218317,2.94,183.39,183.25,2.9]
[1755789218712,2.94,183.39,183.3,5.4557]
[1755789218910,2.94,183.39,183.25,2.9]
[1755789219816,8.06212959,183.35,183.2,8.06212959]
[1755789220018,2.94,183.34,183.2,2.9]
[1755789220416,2.94,183.34,183.26,5.4571]
[1755789220614,2.94,183.34,183.2,2.9]
[1755789220811,2.94,183.34,183.26,5.4571]
[1755789221015,2.94,183.34,183.2,2.9]
[1755789222122,2.94,183.3,183.2,2.9]
[1755789222323,4.89354184,183.29,183.2,2.9]
[1755789222526,4.89354184,183.29,183.23,5.4579]
[1755789222823,4.89354184,183.29,183.19,366.74]
[1755789223021,4.89354184,183.26,183.19,366.74]
[1755789223520,2.94,183.27,183.23,5.4578]
[1755789223715,4.89354184,183.31,183.16,2.9]
[1755789223918,2.94,183.32,183.19,2.9]
[1755789224618,4.89354184,183.31,183.19,2.9]
[1755789225219,2.94,183.24,183.13,2.9]
[1755789225521,4.89354184,183.28,183.13,2.9]
[1755789225723,4.89354184,183.28,183.15,2.9]
[1755789225914,4.89354184,183.37,183.15,2.9]
[1755789225915,4.89354184,183.25,183.15,2.9]
[1755789226315,4.89354184,183.25,183.19,5.4591]
[1755789226526,4.89354184,183.25,183.15,2.9]
[1755789227225,2.94,183.24,183.15,2.9]
[1755789227725,7.83354184,183.24,183.15,2.9]
[1755789227920,4.89354184,183.27,183.15,2.9]
[1755789228126,7.83354184,183.29,183.15,2.9]
[1755789228820,2.94,183.29,183.15,2.9]
[1755789229021,7.83354184,183.29,183.15,2.9]
[1755789229422,2.94,183.28,183.25,5.4572]
[1755789229822,2.94,183.27,183.24,5.4577]
[1755789230227,147.04950956,183.43,183.18,7.79354184]
[1755789230228,7.83354184,183.32,183.18,7.79354184]
[1755789230628,4.89354184,183.32,183.18,7.79354184]
[1755789230829,2.94,183.31,183.18,7.79354184]
[1755789231624,2.94,183.31,183.25,5.4572]
[1755789231829,2.94,183.31,183.18,7.79354184]
[1755789232026,2.94,183.28,183.18,2.9]
[1755789232229,2.94,183.28,183.23,5.4578]
[1755789232427,2.94,183.28,183.18,2.9]
[1755789232827,4.89354184,183.37,183.18,2.9]
[1755789232828,2.94,183.27,183.18,2.9]
[1755789233028,4.89354184,183.37,183.18,7.79354184]
[1755789233325,2.94,183.31,183.18,7.79354184]
[1755789234427,4.89354184,183.37,183.18,7.79354184]
[1755789234428,2.94,183.3,183.18,7.79354184]
[1755789234924,2.94,183.29,183.25,5.4575]
[1755789235123,2.94,183.28,183.13,2.78]
[1755789235434,4.89354184,183.37,183.13,2.78]
[1755789235435,2.94,183.24,183.13,2.78]
[1755789236228,7.83354184,183.26,183.13,2.78]
[1755789236628,7.83354184,183.26,183.18,5.4595]
[1755789236829,4.89354184,183.26,183.13,2.78]
[1755789237029,7.83354184,183.26,183.13,2.78]
[1755789237628,2.94,183.25,183.17,5.4598]
[1755789237826,2.94,183.22,183.1,146.32]
[1755789238030,7.83354184,183.22,183.11,2.78]
[1755789238325,2.94,183.22,183.11,2.78]
[1755789238931,4.89354184,183.25,183.11,2.78]
[1755789239427,7.83354184,183.28,183.14,2.78]
[1755789240233,7.83354184,183.28,183.22,5.4582]
[1755789240427,7.83354184,183.28,183.14,2.78]
[1755789240623,2.94,183.27,183.14,2.78]
[1755789240929,4.89354184,183.25,183.14,2.78]
[1755789241128,2.94,183.24,183.14,2.78]
[1755789241328,2.94,183.24,183.11,150.93354184]
[1755789241329,4.89354184,183.22,183.11,146.04]
[1755789241531,2.94,183.21,183.11,146.04]
[1755789241927,2.94,183.18,183.09,366.68]
[1755789242231,2.94,183.18,183.05,2.78]
[1755789242530,7.83354184,183.22,183.09,4.89354184]
[1755789242733,7.83354184,183.22,183.1,2.78]
[1755789243425,366.78,183.31,183.06,5.93934469]
[1755789243426,2.94,183.26,183.12,4.89354184]
[1755789243634,2.94,183.26,183.15,4.89354184]
[1755789244430,4.89354184,183.28,183.23,5.458]
[1755789244629,2.94,183.25,183.23,5.458]
[1755789245025,2.94,183.25,183.16,2.78]
[1755789245226,2.94,183.25,183.12,146.02]
[1755789245227,2.94,183.3,183.19,2.78]
[1755789245630,4.89354184,183.31,183.25,5.4573]
[1755789245834,2.94,183.28,183.19,2.78]
[1755789246136,7.83354184,183.28,183.14,2.78]
[1755789246329,4.89354184,183.27,183.14,2.78]
[1755789246730,2.94,183.26,183.14,2.78]
[1755789247330,2.94,183.25,183.14,2.78]
[1755789247731,2.94,183.24,183.22,5.4582]
[1755789248236,4.89354184,183.27,183.14,2.78]
[1755789248237,2.94,183.26,183.14,2.78]
[1755789248937,2.94,183.24,183.22,5.4582]
[1755789249545,2.94,183.26,183.14,2.78]
[1755789249937,4.89354184,183.24,183.19,5.459]
[1755789250142,2.94,183.23,183.19,5.459]
[1755789250344,2.94,183.22,183.19,5.459]
[1755789250745,2.94,183.22,183.14,2.78]
[1755789251447,2.94,183.22,183.2,5.4588]
[1755789251844,2.94,183.24,183.19,5.4592]
[1755789252146,4.89354184,183.22,183.14,2.78]
[1755789252346,4.89354184,183.22,183.19,5.4592]
[1755789252547,2.94,183.21,183.19,5.4592]
[1755789252949,4.89354184,183.22,183.14,2.78]
[1755789253145,2.94,183.21,183.12,366.82]
[1755789253342,2.94,183.21,183.11,145.58]
[1755789253549,2.94,183.18,183.11,145.58]
[1755789253940,4.89354184,183.19,183.11,145.58]
[1755789254145,2.94,183.17,183.11,145.58]
[1755789254543,2.94,183.17,183.06,145.2]
[1755789255348,2.94,183.17,183.06,147.98]
[1755789255854,4.89354184,183.19,183.13,5.4609]
[1755789256041,2.94,183.16,183.06,147.98]
[1755789256247,2.94,183.16,183.06,2.78]
[1755789256951,2.94,183.16,183.15,5.4605]
[1755789257752,4.89354184,183.19,183.06,2.78]
[1755789257948,4.89354184,183.16,183.06,2.78]
[1755789258151,2.94,183.15,183.06,2.78]
[1755789259750,7.83354184,183.16,183.06,2.78]
[1755789260347,2.94,183.15,183.02,366.8]
[1755789260556,2.94,183.15,183.02,514.2]
[1755789261256,2.94,183.15,183.09,5.4622]
[1755789261456,2.94,183.15,183.02,514.2]
[1755789261948,4.89354184,183.13,183.02,366.8]
[1755789262161,2.94,183.12,183.02,366.8]
[1755789262954,2.91,183.14,183.1,5.4617]
[1755789263152,2.91,183.14,183.03,3.02]
[1755789263351,7.80354184,183.18,183.03,3.02]
[1755789263557,4.89354184,183.15,183.04,3.02]
[1755789263956,2.91,183.14,183.04,3.02]
[1755789265054,7.80354184,183.15,183.04,3.02]
[1755789265759,4.89354184,183.26,183.02,366.8]
[1755789265760,4.89354184,183.12,183.02,366.8]
[1755789266058,4.89354184,183.26,182.95,16.87204469]
[1755789266059,4.89354184,183.09,183.03,5.4638]
[1755789266252,4.89354184,183.09,183.0,3.02]
[1755789266455,2.91,183.08,182.94,0.95097557]
[1755789266652,4.89354184,183.06,183.0,3.02]
[1755789266954,2.91,183.22,183.0,3.02]
[1755789267157,4.89354184,183.11,183.0,3.02]
[1755789267351,4.89354184,183.11,183.01,3.02]
[1755789267752,2.91,183.07,182.97,3.02]
[1755789267961,4.89354184,183.05,182.97,3.02]
[1755789268156,2.91,183.07,183.02,5.4643]
[1755789268359,2.91,183.07,182.97,3.02]
[1755789268864,7.80354184,183.07,182.97,3.02]
[1755789269158,2.91,183.11,183.03,5.464]
[1755789269358,4.89354184,183.1,182.97,3.02]
[1755789269658,2.91,183.11,183.01,5.4644]
[1755789269859,2.91,183.16,183.01,3.02]
[1755789270157,2.91,183.16,183.03,3.02]
[1755789270363,2.91,183.14,183.03,3.02]
[1755789270555,2.91,183.11,183.0,144.62]
[1755789270755,2.91,183.11,183.04,5.4636]
[1755789271561,2.91,183.11,183.03,5.4637]
[1755789271957,2.91,183.11,182.99,3.02]
[1755789272365,4.89354184,183.09,182.99,3.02]
[1755789272664,4.89354184,183.15,182.82,4.89354184]
[1755789272665,4.89354184,183.06,182.95,3.02]
[1755789273751,2.91,183.08,182.95,3.02]
[1755789274257,4.89354184,183.12,182.96,4.89354184]
[1755789274467,4.89354184,183.12,183.0,3.02]
[1755789274652,2.91,183.11,183.0,3.02]
[1755789275059,2.91,183.11,183.04,5.4637]
[1755789275366,2.91,183.11,182.96,144.82]
[1755789275367,2.91,183.08,182.96,144.82]
[1755789275558,2.91,183.08,183.02,5.4641]
[1755789276359,2.91,183.08,182.95,3.02]
[1755789276856,2.91,183.08,182.98,3.02]
[1755789277060,7.80354184,183.12,182.98,3.02]
[1755789277258,7.80354184,183.12,183.04,5.4636]
[1755789277457,7.80354184,183.12,182.98,3.02]
[1755789277657,7.80354184,183.12,183.02,5.4642]
[1755789277859,2.91,183.08,182.98,3.02]
[1755789278657,4.89354184,183.06,182.94,144.66]
[1755789278868,2.91,183.05,182.94,144.66]
[1755789279059,2.91,183.05,182.93,3.02]
[1755789279259,2.91,183.05,182.98,5.4655]
[1755789279565,2.91,183.05,182.93,3.02]
[1755789279862,2.91,183.05,182.9,0.95113152]
[1755789279863,4.89354184,183.03,182.9,0.95113152]
[1755789280164,2.91,183.02,182.9,0.95113152]
[1755789280365,2.91,183.02,182.98,5.4653]
[1755789280658,2.91,183.02,182.91,3.02]
[1755789281063,4.89354184,183.06,182.91,4.89354184]
[1755789281263,4.89354184,183.09,182.95,3.02]
[1755789282361,2.91,183.08,183.0,5.4649]
[1755789282563,2.91,183.08,182.95,3.02]
[1755789283458,4.89354184,183.06,182.95,3.02]
[1755789283865,7.80354184,183.08,182.95,3.02]
[1755789284063,367.08,183.13,182.93,4.89354184]
[1755789284064,2.91,183.11,182.97,3.02]
[1755789284262,2.91,183.11,182.99,4.89354184]
[1755789284563,21.27354184,183.26,182.93,4.89354184]
[1755789284564,7.80354184,183.15,183.03,3.02]
[1755789284957,2.91,183.15,183.03,3.02]
[1755789285466,367.12,183.24,183.06,5.4631]
[1755789285467,2.91,183.11,183.06,5.4631]
[1755789285668,2.91,183.11,182.99,10.9301]
[1755789285862,2.91,183.11,182.98,3.02]
[1755789286163,4.89354184,183.09,182.98,3.02]
[1755789286567,4.89354184,183.09,183.06,5.463]
[1755789286768,2.91,183.11,182.98,3.02]
[1755789286964,2.91,183.11,183.0,3.02]
[1755789287572,2.91,183.11,183.09,5.4623]
[1755789287869,2.91,183.11,183.0,3.02]
[1755789288070,4.89354184,183.12,183.08,5.4626]
[1755789288265,2.91,183.11,183.08,5.4626]
[1755789288673,2.91,183.11,183.0,3.02]
[1755789289871,4.89354184,183.09,183.0,3.02]
[1755789290265,4.89354184,183.09,183.06,5.463]
[1755789290574,7.80354184,183.09,183.0,3.02]
[1755789290967,4.89354184,183.09,182.97,367.12]
[1755789291162,4.89354184,183.06,182.97,367.12]
[1755789291369,7.80354184,183.06,182.96,3.02]
[1755789291864,4.89354184,183.03,182.9,150.08467336]
[1755789292071,4.89354184,183.03,182.91,3.02]
[1755789292673,2.97,183.02,182.91,3.02]
[1755789293769,2.97,183.02,182.96,5.466]
[1755789293965,2.97,183.02,182.91,3.02]
[1755789294671,2.97,183.02,182.95,5.4665]
[1755789294875,4.89354184,183.0,182.91,3.02]
[1755789295767,2.97,183.02,182.91,3.02]
[1755789296770,2.97,183.02,182.95,5.4664]
[1755789296969,2.97,183.02,182.91,3.02]
[1755789297272,2.97,183.02,182.97,5.4658]
[1755789297474,2.97,183.0,182.91,3.02]
[1755789297674,2.97,182.96,182.88,0.95123551]
[1755789297978,2.97,182.96,182.82,2.89]
[1755789298170,2.97,182.96,182.84,2.89]
[1755789298370,2.97,183.1,182.84,2.89]
[1755789298571,2.97,183.01,182.87,2.89]
[1755789298976,4.89354184,182.99,182.87,2.89]
[1755789299171,2.97,183.0,182.87,2.89]
[1755789299370,2.97,182.97,182.87,2.89]
[1755789300473,2.97,183.03,182.88,2.89]
[1755789300672,7.86354184,183.03,182.88,2.89]
[1755789300866,2.97,183.02,182.88,2.89]
[1755789301067,4.89354184,183.0,182.88,2.89]
[1755789301278,2.97,183.1,182.91,2.89]
[1755789301479,4.89354184,183.0,182.91,2.89]
[1755789301775,2.97,183.02,182.91,2.89]
[1755789301972,4.89354184,182.99,182.91,2.89]
[1755789302175,2.97,183.02,182.91,2.89]
[1755789302374,7.86354184,183.02,182.91,2.89]
[1755789302772,4.89354184,182.99,182.91,2.89]
[1755789302975,4.89354184,182.99,182.94,5.4666]
[1755789303278,2.97,182.98,182.87,2.89]
[1755789303476,2.97,182.97,182.94,5.4668]
[1755789303677,2.97,182.96,182.87,2.89]
[1755789304084,2.97,182.95,182.87,2.89]
[1755789304380,4.89354184,182.93,182.83,3.84158666]
[1755789304577,2.97,182.92,182.88,5.4685]
[1755789304780,2.97,182.92,182.83,2.89]
[1755789304976,4.89354184,182.95,182.9,5.4678]
[1755789305179,2.97,182.97,182.83,7.78354184]
[1755789305387,4.89354184,182.99,182.84,2.89]
[1755789305578,4.89354184,183.0,182.87,2.89]
[1755789306479,4.89354184,182.97,182.9,5.468]
[1755789306672,4.89354184,182.97,182.87,2.89]
[1755789307081,4.89354184,182.97,182.91,5.4675]
[1755789307380,2.97,182.95,182.91,5.4675]
[1755789307683,2.97,182.95,182.87,2.89]
[1755789307884,2.97,183.13,182.88,2.89]
[1755789308078,2.97,183.03,182.88,2.89]
[1755789308278,7.86354184,182.99,182.88,2.89]
[1755789308675,4.89354184,183.02,182.88,4.89354184]
[1755789308883,2.97,183.14,182.94,4.89354184]
[1755789309178,367.24,183.15,182.94,4.89354184]
[1755789309179,2.97,183.08,182.94,4.89354184]
[1755789309385,4.89354184,183.12,182.98,2.89]
[1755789309587,4.89354184,183.09,182.98,2.89]
[1755789309786,4.89354184,183.03,182.93,2.89]
[1755789310081,2.97,183.07,182.93,2.89]
[1755789310285,2.97,183.12,182.98,2.89]
[1755789310486,367.24,183.15,182.98,2.89]
[1755789310487,4.89354184,183.07,182.98,2.89]
[1755789310682,4.89354184,183.07,183.03,5.464]
[1755789310882,2.97,183.05,183.03,5.464]
[1755789311085,2.97,183.05,182.98,2.89]
[1755789311279,4.89354184,183.04,182.92,2.89]
[1755789312584,4.89354184,183.01,182.92,2.89]
[1755789312787,4.89354184,183.01,182.97,5.4658]
[1755789313085,2.97,183.0,182.92,2.89]
[1755789313289,4.89354184,183.01,182.92,2.89]
[1755789313481,4.89354184,183.04,182.92,7.78354184]
[1755789313687,4.89354184,183.07,182.93,2.89]
[1755789314085,4.89354184,183.06,182.93,2.89]
[1755789314480,4.89354184,183.03,182.93,2.89]
[1755789314689,372.13354184,183.15,182.89,367.3]
[1755789314690,4.89354184,183.0,182.89,370.19]
[1755789314986,4.89354184,183.01,182.89,370.19]
[1755789315182,2.97,183.02,182.89,370.19]
[1755789315183,4.89354184,182.97,182.89,370.19]
[1755789315779,2.97,183.02,182.89,2.89]
[1755789315780,4.89354184,182.95,182.89,2.89]
[1755789316178,2.97,182.98,182.83,2.89]
[1755789316789,4.89354184,183.02,182.89,2.89]
[1755789316982,2.97,183.03,182.89,2.89]
[1755789317383,372.13354184,183.15,182.89,2.89]
[1755789317384,4.89354184,182.98,182.89,2.89]
[1755789317689,2.97,183.03,182.89,2.89]
[1755789317987,2.97,183.03,182.9,2.89]
[1755789318188,4.89354184,183.07,182.92,4.89354184]
[1755789318389,2.97,183.08,182.96,2.89]
[1755789318588,372.13354184,183.15,182.82,180.09424184]
[1755789318589,4.89354184,183.1,182.97,4.89354184]
[1755789318789,7.86354184,183.13,182.98,2.89]
[1755789318990,7.86354184,183.13,183.04,5.4638]
[1755789319182,2.97,183.09,182.98,2.89]
[1755789319384,4.89354184,183.1,182.94,4.89354184]
[1755789319385,4.89354184,183.04,182.94,2.89]
[1755789319893,4.89354184,183.01,182.94,2.89]
[1755789320088,4.89354184,183.01,182.92,516.68]
[1755789320089,4.89354184,183.01,182.92,149.44]
[1755789320284,4.89354184,182.98,182.83,149.6]
[1755789320591,4.89354184,183.04,182.81,373.17934469]
[1755789320592,4.89354184,182.95,182.85,2.89]
[1755789321281,4.89354184,182.95,182.81,367.24]
[1755789321282,4.89354184,182.92,182.8,0.95171678]
[1755789321592,4.89354184,182.85,182.8,0.95171678]
[1755789321886,7.86354184,182.85,182.8,0.95171678]
[1755789322186,4.89354184,182.88,182.8,0.95171678]
[1755789322388,2.97,182.91,182.8,0.95171678]
[1755789322585,2.97,182.96,182.81,2.89]
[1755789322781,4.89354184,182.95,182.81,2.89]
[1755789323192,4.89354184,182.92,182.81,2.89]
[1755789323493,4.89354184,182.96,182.81,2.89]
[1755789323688,4.89354184,182.93,182.81,2.89]
[1755789324686,4.89354184,182.9,182.81,2.89]
[1755789324986,4.89354184,182.93,182.81,2.89]
[1755789325190,7.87354184,182.98,182.84,2.83]
[1755789325386,2.98,182.98,182.84,2.83]
[1755789325788,4.89354184,182.96,182.84,2.83]
[1755789325982,2.98,182.94,182.84,2.83]
[1755789326183,7.87354184,182.99,182.85,4.89354184]
[1755789326385,2.98,183.01,182.86,2.83]
[1755789326580,4.89354184,183.03,182.89,2.83]
[1755789326785,4.89354184,183.0,182.89,2.83]
[1755789327188,2.98,183.02,182.89,2.83]
[1755789327488,7.87354184,183.02,182.89,2.83]
[1755789327889,2.98,183.06,182.9,4.89354184]
[1755789328093,4.89354184,183.05,182.91,2.83]
[1755789328292,2.98,183.06,182.93,4.89354184]
[1755789328482,7.87354184,183.11,182.97,2.83]
[1755789328896,367.34,183.18,183.0,2.83]
[1755789328897,2.98,183.16,183.0,2.83]
[1755789329085,2.98,183.16,183.02,4.89354184]
[1755789329294,4.89354184,183.15,183.03,2.83]
[1755789329489,7.87354184,183.12,182.97,4.89354184]
[1755789329694,7.87354184,183.12,182.98,2.83]
[1755789330089,4.89354184,183.1,182.98,2.83]
[1755789330291,2.98,183.12,182.98,2.83]